Cogmind - Beta 12 @@@ ROGUE MODE // 2023.12.26 @ 12:33:44 Player: puppuppit Result: Destroyed by Y-45 Defender with Beam Rifle Performance ------------- Evolutions (1) 500 Regions Visited (5) 1000 Robots Destroyed (44) 220 Value Destroyed (854) 854 Prototype IDs (5) 100 Alien Tech Used (0) 0 Bonus (246) 246 TOTAL SCORE: 2920 Bonus ------- Follower Combat Kills 294 Friendly Fire -48 Cogmind --------- Core Integrity 0/400 Matter 300/300 Energy 125/125 System Corruption 6% Temperature Cool (27) Movement Rolling (120) Ox1 Location -9/Recycling Parts ------- > --- POWER (1) -------- Light Ion Engine > --- PROPULSION (2) --- Wheeled Compact Exoskeleton > --- UTILITY (4) ------ Scrap Engine > --- WEAPON (2) ------- Improved Light Cannon Ballistic Assault Construct/G > --- INVENTORY (5) ---- Improved Hover Unit Small Storage Unit Medium Matter Pod (100) Improved Light Cannon Peak State ------------ > --- POWER ------------ Light Ion Engine > --- PROPULSION ------- Wheeled Compact Exoskeleton > --- UTILITY ---------- Scrap Engine > --- WEAPON ----------- Improved Light Cannon Ballistic Assault Construct/G > --- INVENTORY -------- Improved Hover Unit Small Storage Unit Medium Matter Pod Improved Light Cannon [Rating: 24] Favorites ----------- Power Light Ion Engine Engine Light Ion Engine Power Core Light Nuclear Core Propulsion Flight Unit Wheel Wheel Hover Unit Backup Propulsion I Flight Unit Flight Unit Utility Targeting Computer Device Scrap Engine Storage Small Storage Unit Processor Targeting Computer Protection Backup Plating I Weapon Light Cannon Energy Gun Medium Laser Energy Cannon Light EM Pulse Cannon Ballistic Gun Light Assault Rifle Ballistic Cannon Light Cannon Launcher Rocket Launcher Special Weapon Mining Laser Build | -11 -10 -10 -9 -9 -9 ------- Run | Jun Mat Min Mat Sto Rec Slots Evolved 2 | . . . 2 . . Power . | . . . . . . Propulsion . | . . . . . . Utility 2 | . . . 2 . . Weapon . | . . . . . . Parts Attached 59 | 6 10 19 15 8 1 Power 11 | 1 1 6 1 2 . Engine 10 | 1 1 6 1 1 . Core 1 | . . . . 1 . Reactor . | . . . . . . Propulsion 23 | 2 3 5 10 3 . Treads . | . . . . . . Leg . | . . . . . . Wheel 2 | 2 . . . . . Hover 10 | . 3 . 6 1 . Flight 11 | . . 5 4 2 . Utility 8 | . 3 4 . . 1 Device 1 | . . . . . 1 Storage 3 | . 1 2 . . . Processor 3 | . 1 2 . . . Hackware . | . . . . . . Protection 1 | . 1 . . . . Artifact . | . . . . . . Weapon 17 | 3 3 4 4 3 . Energy Gun 3 | 2 1 . . . . Energy Cannon 1 | . . . 1 . . Ballistic Gun 7 | 1 . 2 2 2 . Ballistic Cannon 3 | . 2 . . 1 . Launcher 1 | . . . 1 . . Special Weapon 2 | . . 2 . . . Impact Weapon . | . . . . . . Slashing Weapon . | . . . . . . Piercing Weapon . | . . . . . . Special Melee Weapon . | . . . . . . Unidentified Prototypes . | . . . . . . Parts Lost 20 | . 1 4 12 3 . Power 3 | . . 1 2 . . Propulsion 9 | . 1 1 5 2 . Utility 1 | . . . 1 . . Weapon 7 | . . 2 4 1 . Highest Loss Streak 6 | . 1 1 6 3 . To Critical Strikes . | . . . . . . Average Slot Usage (%) 64 | . 76 78 67 44 44 Engine 8 | . 7 10 7 2 11 Wheel 1 | . 4 . . . 3 Hover 11 | . 16 11 18 10 7 Flight 7 | . . 15 3 9 . Device 2 | . . . . . 11 Storage 3 | . . 4 11 1 . Processor 6 | . 8 11 8 . . Protection 4 | . 11 5 . . . Energy Gun 4 | . 15 2 7 . . Ballistic Gun 4 | . . 5 3 12 . Ballistic Cannon 7 | . 11 8 . 2 11 Naked Turns 18 | . . . . 18 . Heaviest Build 18 | 7 18 12 13 7 11 Greatest Support 20 | 20 20 12 14 13 10 Greatest Overweight (x) 1 | . 1 1 1 1 1 Average Overweight (x) . | . . . . . . Largest Inventory Capacity 10 | 5 10 8 8 8 5 Average Capacity 5 | 5 5 6 8 5 5 Most Carried 8 | . 5 8 8 5 5 Average Carried 4 | . 3 5 5 4 3 Final Capacity 8 | 5 5 8 8 5 5 Final Carried 6 | . 5 6 3 5 4 Scrap Engine Consumption 25 | . . . . . 25 Constructs Created 3 | . . . . . 3 Class Distribution -------------------- 75% | Mutant 19% | Scavenger-Mutant 3% | Commander-Mutant Dominant Class ---------------- Mutant | -10/Materials Mutant | -10/Mines Mutant | -9/Materials Scavenger-Mutant | -9/Storage Mutant | -9/Recycling Resources | -11 -10 -10 -9 -9 -9 ----------- Run | Jun Mat Min Mat Sto Rec Matter Collected 1373 | 260 183 538 17 218 157 Remotely . | . . . . . . Salvage Created 1687 | 48 233 575 54 196 581 Parts 65 | 2 9 23 4 7 20 Haulers Intercepted 1 | . 1 . . . . Recyclers Shooed 8 | . . 3 . . 5 Parts Field Recycled . | . . . . . . Retrieved Matter . | . . . . . . Parts Self-Destructed . | . . . . . . Prevented . | . . . . . . Kills | -11 -10 -10 -9 -9 -9 ------- Run | Jun Mat Min Mat Sto Rec Combat Hostiles Destroyed 27 | 1 4 16 3 2 1 Guns 5 | . 1 3 . 1 . Cannons 20 | . 3 12 3 1 1 AOE 1 | . . 1 . . . Classes Destroyed 6 | 1 2 2 . . 1 Hauler 1 | . 1 . . . . Recycler 13 | . . 4 . 1 8 Watcher 3 | . 2 . . 1 . Swarmer 12 | . . 9 3 . . Grunt 14 | 1 4 7 . 2 . Sentry 1 | . . . . . 1 Best Kill Streak 8 | 1 4 4 2 2 8 Combat Bots Only 4 | 1 4 4 2 1 1 Max Kills in Single Turn 1 | 1 1 1 1 1 1 Gunslinging . | . . . . . . Exploded 1 | . . 1 . . . Melee . | . . . . . . Uniques/NPCs Destroyed . | . . . . . . Combat | -11 -10 -10 -9 -9 -9 -------- Run | Jun Mat Min Mat Sto Rec Damage Taken 1891 | 43 180 433 860 302 73 Core 642 | 21 37 177 233 160 14 Absorbed by Shields . | . . . . . . Core Remaining (%) 48 | 91 . 6 . . . Volleys Fired 182 | 4 22 95 11 19 31 Largest 2 | 2 2 2 2 2 1 Hottest 120 | 100 85 120 76 40 39 Shots Fired 236 | 8 41 108 17 30 32 Gun 105 | 8 22 46 7 22 . Cannon 125 | . 19 59 7 8 32 Launcher 3 | . . . 3 . . Special 3 | . . 3 . . . Kinetic 180 | . 19 96 3 30 32 Thermal 46 | 8 22 12 4 . . Explosive 3 | . . . 3 . . Electromagnetic 7 | . . . 7 . . Robot Hit Streak 10 | 7 8 10 2 7 5 Robot Miss Streak 4 | 1 3 4 2 3 2 Penetration Max . | . . . . . . Secondary Targets . | . . . . . . Shots Hit Robots 152 | 7 25 71 8 19 22 Core Hits 68 | 1 10 27 10 11 9 Critical Kills . | . . . . . . Critical Parts Destroyed . | . . . . . . Critical Strikes 7 | . 5 2 . . . Burn 4 | . 4 . . . . Blast 3 | . 1 2 . . . Melee Attacks . | . . . . . . Impact . | . . . . . . Slashing . | . . . . . . Piercing . | . . . . . . Sneak Attacks . | . . . . . . Combat Hostiles . | . . . . . . Follow-up Attacks . | . . . . . . Damage Inflicted 2437 | 90 376 960 300 264 447 Guns 724 | 90 202 293 18 121 . Cannons 1433 | . 174 619 77 116 447 Explosions 205 | . . . 205 . . Melee . | . . . . . . Ramming 27 | . . . . 27 . Kinetic 1718 | . 174 850 10 237 447 Thermal 410 | 90 202 110 8 . . Explosive 205 | . . . 205 . . Electromagnetic 77 | . . . 77 . . Impact . | . . . . . . Slashing . | . . . . . . Piercing . | . . . . . . Highest Corruption 6 | . . . 1 5 6 Average Corruption 4 | . . . 1 4 5 Corruption Purged . | . . . . . . Corruption Blocked . | . . . . . . Effects 25 | . . . 3 8 14 Message Errors 4 | . . . . . 4 Matter Fused 4 | . . . . 2 2 Heat Flow Errors 3 | . . . 1 1 1 Energy Discharges 3 | . . . . 1 2 Parts Rejected 1 | . . . 1 . . Data Loss (minor) 5 | . . . 1 2 2 Data Loss (major) 1 | . . . . 1 . Misfires 1 | . . . . . 1 Alerts 3 | . . . . 1 2 Overload Shots . | . . . . . . Overflow Damage 59 | . . 30 25 . 4 Projectiles 34 | . . 30 . . 4 Explosions 25 | . . . 25 . . Melee . | . . . . . . Knockbacks 10 | . . 6 . 1 3 Impact . | . . . . . . Kinetic 9 | . . 5 . 1 3 Secondary 1 | . . 1 . . . Self-Inflicted Damage 45 | . . . 33 12 . Shots 1 | . . . 1 . . Rammed 7 | . . . . 7 . Targets Rammed 7 | . . . . 7 . Kicked . | . . . . . . Crushed . | . . . . . . Highest Temperature 203 | 180 141 203 170 110 136 Average Temperature 54 | 110 46 65 39 21 42 Received Heat Transfer 732 | 24 105 195 345 18 45 Siege Activations . | . . . . . . Robots Corrupted . | . . . . . . Combat Hostiles . | . . . . . . Parts Fried . | . . . . . . Impact Corruptions 1 | . . 1 . . . Robots Melted 1 | 1 . . . . . Combat Hostiles 1 | 1 . . . . . Parts Melted 2 | . 2 . . . . Heat Transferred 1469 | 259 888 285 37 . . Parts Sabotaged . | . . . . . . Parts Stolen . | . . . . . . Parts Stripped . | . . . . . . Power Chain Reactions . | . . . . . . Missiles Intercepted . | . . . . . . Alert | -11 -10 -10 -9 -9 -9 ------- Run | Jun Mat Min Mat Sto Rec Peak Influence 384 | 20 275 278 315 384 144 Initial 64 | . 13 28 61 62 64 Average 129 | 2 154 129 145 181 76 Maximum Alert Level 1 | . 1 1 1 1 . Low Security (%) 78 | 100 50 85 79 58 100 Level 1 21 | . 49 14 20 41 . Level 2 . | . . . . . . Level 3 . | . . . . . . Level 4 . | . . . . . . Level 5 . | . . . . . . High Security . | . . . . . . Max Security . | . . . . . . Squads Dispatched 9 | . 1 . 2 6 . Investigation 5 | . . . 2 3 . Extermination . | . . . . . . Reinforcement 1 | . 1 . . . . Assault 2 | . . . . 2 . Garrison 1 | . . . . 1 . Intercept . | . . . . . . Searches Triggered . | . . . . . . Construction Impeded . | . . . . . . Haulers Reinforced . | . . . . . . Active Scanning Responses . | . . . . . . Cargo Convoy Interrupts . | . . . . . . Stealth | -11 -10 -10 -9 -9 -9 --------- Run | Jun Mat Min Mat Sto Rec Distress Signals 1 | . . . . 1 . Communications Jammed . | . . . . . . Distress Signals . | . . . . . . Times Spotted 89 | 1 8 20 26 32 2 Peak Tracking Total 11 | 1 3 5 11 10 1 Tactical Retreats 12 | . 1 3 5 3 . Traps | -11 -10 -10 -9 -9 -9 ------- Run | Jun Mat Min Mat Sto Rec Traps Triggered 4 | . 1 . 1 2 . Indirectly . | . . . . . . Trap Hack Attempts . | . . . . . . Triggered . | . . . . . . Disarmed . | . . . . . . Reprogrammed 2 | . . . 2 . . Reused 2 | . . 2 . . . Traps Extracted . | . . . . . . Installed 3 | . . 3 . . . Triggered 2 | . . 2 . . . Most Traps Carried 2 | . . 2 . . . Machines | -11 -10 -10 -9 -9 -9 ---------- Run | Jun Mat Min Mat Sto Rec Machines Disabled 2 | . 1 . 1 . . Max in Single Turn 1 | . 1 . 1 . . Machines Repaired . | . . . . . . Machines Sabotaged . | . . . . . . Overloaded Fab Kills . | . . . . . . Hacking | -11 -10 -10 -9 -9 -9 --------- Run | Jun Mat Min Mat Sto Rec Machines Accessed 27 | . 6 . 4 8 9 Terminals 21 | . 5 . 2 8 6 Fabricators . | . . . . . . Repair Stations 2 | . 1 . 1 . . Recycling Units 3 | . . . . . 3 Scanalyzers 1 | . . . 1 . . Garrison Access . | . . . . . . Total Hacks 82 | . 19 . 16 23 24 Successful 37 | . 11 . 11 7 8 Failed 45 | . 8 . 5 16 16 Catastrophic 8 | . . . . 4 4 Database Lockouts . | . . . . . . Manual 19 | . 2 . 1 7 9 Terminals 70 | . 18 . 11 23 18 Fabricators . | . . . . . . Repair Stations 3 | . 1 . 2 . . Recycling Units 6 | . . . . . 6 Scanalyzers 3 | . . . 3 . . Garrison Access . | . . . . . . Terminal Hacks 30 | . 10 . 8 7 5 Record 3 | . 3 . . . . Part Schematic 2 | . . . . 1 1 Robot Schematic 1 | . . . . 1 . Prototype ID Bank 2 | . 2 . . . . Open Door 1 | . . . . 1 . Branch Access Points 4 | . 1 . 1 1 1 Terminal Index 2 | . . . 1 . 1 Recycling Unit Index 1 | . . . 1 . . Alert Level 1 | . 1 . . . . Unreport Threat 3 | . . . 1 2 . Locate Traps 1 | . . . 1 . . Reprogram Traps 1 | . . . 1 . . Dispatch Records 2 | . 1 . 1 . . Zone Layout 6 | . 2 . 1 1 2 Fabricator Hacks . | . . . . . . Repair Station Hacks 2 | . 1 . 1 . . Refit 2 | . 1 . 1 . . Recycling Unit Hacks 3 | . . . . . 3 Retrieve Components 3 | . . . . . 3 Scanalyzer 2 | . . . 2 . . Insert Component 1 | . . . 1 . . Analyze 1 | . . . 1 . . Garrison Access Hacks . | . . . . . . Unauthorized Hacks . | . . . . . . Terminals . | . . . . . . Fabricators . | . . . . . . Repair Stations . | . . . . . . Recycling Units . | . . . . . . Scanalyzers . | . . . . . . Garrison Access . | . . . . . . Data Cores Recovered . | . . . . . . Used . | . . . . . . Hacking Detections 23 | . 5 . 4 7 7 Full Trace Events 9 | . . . 1 4 4 Feedback Events 2 | . . . 1 . 1 Corruption 2 | . . . 1 . 1 Feedback Blocked . | . . . . . . Robot Schematics Acquired 1 | . . . . 1 . Robots Built . | . . . . . . Authchips . | . . . . . . Time . | . . . . . . Total Robot Build Rating . | . . . . . . Part Schematics Acquired 2 | . . . . 1 1 Parts Built . | . . . . . . Authchips . | . . . . . . Time . | . . . . . . Total Part Build Rating . | . . . . . . Parts Repaired . | . . . . . . Time . | . . . . . . Parts Recycled . | . . . . . . Recycled Matter . | . . . . . . Retrieved Matter . | . . . . . . Retrieved Components 3 | . . . . . 3 Parts Scanalyzed 1 | . . . 1 . . Part Schematics Acquired . | . . . . . . Parts Damaged . | . . . . . . Bothacking | -11 -10 -10 -9 -9 -9 ------------ Run | Jun Mat Min Mat Sto Rec Used RIF Installer . | . . . . . . Robots Hacked . | . . . . . . Non-combat . | . . . . . . Combat . | . . . . . . Robot Hacks Applied . | . . . . . . Relay Couplers Released . | . . . . . . Fabnet Peak Effective % . | . . . . . . Robots Rewired . | . . . . . . Allies Hacked . | . . . . . . Hacks Repelled . | . . . . . . Allies | -11 -10 -10 -9 -9 -9 -------- Run | Jun Mat Min Mat Sto Rec Total Allies 13 | . . 1 . 12 . Largest Group 10 | . . 1 . 10 . Highest-Rated Group 88 | . . 31 . 88 . Highest-Rated Ally 31 | . . 31 . 31 . Total Orders . | . . . . . . Ally Attacks 93 | . . 2 . 91 . Total Damage 1048 | . . 44 . 1004 . Kills 15 | . . . . 15 . Allies Corrupted . | . . . . . . Allies Melted . | . . . . . . Intel | -11 -10 -10 -9 -9 -9 ------- Run | Jun Mat Min Mat Sto Rec Robot Analysis Total . | . . . . . . Derelict Logs Recovered 1 | . . 1 . . . Drone Launches . | . . . . . . Drone Recoveries . | . . . . . . Exploration | -11 -10 -10 -9 -9 -9 ------------- Run | Jun Mat Min Mat Sto Rec Turns Passed 2323 | 62 401 841 210 349 460 Spaces Moved 2517 | 57 405 890 278 393 494 Core 47 | 15 2 . 1 29 . Treads . | . . . . . . Legs . | . . . . . . Wheels 387 | 42 67 . . . 278 Hover 1473 | . 336 351 222 348 216 Flight 610 | . . 539 55 16 . Fastest Speed 37 | 50 66 37 37 37 40 Average Speed 63 | 72 74 54 54 60 78 Slowest Speed 160 | 80 100 160 100 100 120 Overloaded Moves . | . . . . . . Propulsion Burnouts . | . . . . . . Robots Hopped 19 | . . 19 . . . Cave-ins Triggered . | . . . . . . Exploration Rate (%) 54 | 7 63 98 33 63 63 Regions Visited 5 Branch Regions 3 Pre-discovered Areas . | . . . . . . Known Exits Taken 4 | . 1 1 1 1 . Unknown Exits Taken 1 | 1 . . . . . Scrap Searched 2 | . . 2 . . . Spaces Dug . | . . . . . . Terrain Destroyed 31 | . . 1 27 . 3 Melee . | . . . . . . Projectile 4 | . . 1 . . 3 AOE 27 | . . . 27 . . Terrain Rammed . | . . . . . . Walls Destroyed . | . . . . . . Machines Disabled . | . . . . . . Actions | -11 -10 -10 -9 -9 -9 --------- Run | Jun Mat Min Mat Sto Rec Total 2994 | 67 464 1131 319 477 536 Wait 167 | . 11 105 5 41 5 Move 2476 | 56 404 853 277 392 494 Hop 17 | . . 17 . . . Pick Up 28 | . 7 14 4 3 . Fast Attach 29 | 6 5 6 6 5 1 Attach 18 | . 5 5 7 1 . Detach 15 | . 4 6 2 1 2 Swap 12 | . . 8 2 2 . Drop 37 | 1 6 19 5 3 3 Fire 182 | 4 22 95 11 19 31 Melee . | . . . . . . Ram 7 | . . . . 7 . Kick . | . . . . . . Crush . | . . . . . . Escape Stasis . | . . . . . . Rewire 3 | . . . . 3 . Trap 3 | . . 3 . . . Miscellaneous . | . . . . . . Route ------- -11/Junkyard -10/Materials (discovered 3 exits: *Mat / *Min x2) -10/Mines (discovered 2 exits: *Mat x2) -9/Materials (discovered 5 exits: [*Mat x2] / Min x2 / *Sto) -9/Storage -9/Recycling (discovered 1 exit: [*Fac]) History --------- Turn | Location | Event 2 | -11/Junkyard | Met Revision 17 43 | -11/Junkyard | Discovered new exit (range 8) 63 | -11/Junkyard | Entered Materials 63 | -10/Materials | Discovered new exit (range 7) 171 | -10/Materials | Discovered new exit (range 10) 172 | -10/Materials | Identified exit to Mines 310 | -10/Materials | Build established: Mutant 389 | -10/Materials | Discovered new exit (range 17) 464 | -10/Materials | Entered Mines 468 | -10/Mines | Identified exit to Materials 478 | -10/Mines | Met a Derelict bent on vengeance 908 | -10/Mines | Core integrity fell below 50% 1043 | -10/Mines | Received a Mining Laser from a helpful Derelict 1063 | -10/Mines | Found a hidden stash of uninstalled traps 1188 | -10/Mines | Received a Rocket Launcher from a helpful Derelict 1234 | -10/Mines | Discovered exit to Materials (range 4) 1267 | -10/Mines | Core integrity fell below 20% 1285 | -10/Mines | Build established: Scavenger-Mutant 1305 | -10/Mines | Entered Materials 1305 | -9/Materials | Evolved 2 slots: Utility x2 1377 | -9/Materials | Lost 5 parts (1p2n2w) 1377 | -9/Materials | Discovered new exit (range 13) 1377 | -9/Materials | Identified exit to Mines 1377 | -9/Materials | Identified exit to Storage 1452 | -9/Materials | Discovered new exit (range 5) 1498 | -9/Materials | Core integrity fell below 50% 1515 | -9/Materials | Entered Storage 1538 | -9/Storage | Lost 6 parts (1p2n1u2w) 1564 | -9/Storage | Core integrity fell below 20% 1576 | -9/Storage | Identified exit to Recycling 1579 | -9/Storage | Assisted by bots powering up and referring to "LRC-V3" 1586 | -9/Storage | Lost 3 parts (2n1w) 1689 | -9/Storage | Garrison activated, responded to threat 1773 | -9/Storage | Met a pair of Derelict thieves 1861 | -9/Storage | Used back door to open Recycling access 1864 | -9/Storage | Entered Recycling 1866 | -9/Recycling | Found Scrap Engine 2065 | -9/Recycling | Build established: Mutant 2236 | -9/Recycling | Discovered new exit (range 15) 2324 | -9/Recycling | Destroyed by Y-45 Defender with Beam Rifle Last Messages --------------- 02203_ System corrupted: IFF burst signal emitted. 02219_ System corrupted: Energy discharge (-25). 02228_ Connecting with Recycling Unit... 02231_ Scrap Engine consumes Imp. Aluminum Leg. 02236_ EXIT=FOUND 02246_ Connecting with Terminal... 02257_ Y-45 Defender springs to life. 02262_ Y-45 Defender destroyed. 02265_ Scrap Engine consumes Hvy. Assault Rifle. 02265_ Acquired 20 matter. 02271_ System corrupted: FCS attempts to trigger Imp. Light Cannon. 02271_ System corrupted: Imp. Light Cannon misfires. 02274_ Connecting with Terminal... >>Access(Branch) No branch access points found. 02289_ System corrupted: Matter fused (-6). 02295_ Scrap Engine constructs Ballistic Assault Construct/G. 02296_ Acquired 10 matter. 02324_ Y-45 Defender springs to life. 02324_ Critical hit (Burn: +37). Map ----- +----------------------------------------------------+ | ?????# % ##?# # ##+#####+##### | | ?????# #?# # | | ?????# %##?# # ############ | | ?????# #??# # %##########?? | | ?????# #??# # /% #?? | | ?????# #??# ##### #?? | | ?????# #### ##?## % #?? | | ?????# ""## #?## % #?# | | ?????# Y"## ##??#% % ## | | ?????# ""## #???# % ## | | ?????# #########???# !% ## | | ?????# #???????????# % ## | | ?????# ###########?# % ## | | ???### # #?# % ## | | ???# # #?# % %# | | ???# # #?# %+% | | ???# # #?# # | | ???### + #?# # | | ?????# # ## # | | ?????# # ### # | | ?????# # #?# # | | ?????# ###########?####### ## | | ?????# #?????????????????#### | | ?????# ##########??????????## | | ?????# # #??????????# | | ?????# @# """ #??????????# | | ?????# # """ ##?????????# | | ?????# + """ T#?????????# | | ????#Y # ##?????????# | | ????## # """ #??????????#### | | ?????# # """ #?????????????? | | ?????# < # """ #?????????????? | | ?????# # #?????????????? | | ?????##############?????????????? | | ????????????????????????????????? | | ????????????????????????????????? | | ????????????????????????????????? | | ????????????????????????????????? | | ????????????????????????????????? | | ????????????????????????????????? | | | | | | | | | | | | | | | | | | | | | +----------------------------------------------------+ Best States ------------- Heat Dissipation 28 Energy Generation 14 Energy Capacity 160 Matter Stores 300 Matter Capacity 300 Sight Range 18 Terrain Scan Density 10 Armor Coverage 80 Evasion (%) 62 Targeting Accuracy 10 Item Schematics ----------------- Imp. Light Cannon | -9/Storage | Hacked Airjet | -9/Recycling | Hacked Robot Schematics ------------------ L-31 Rogue | -9/Storage | Hacked Fabricated ------------ Nothing Alien Tech Used ----------------- None Achievements -------------- Close Call Cya! Hey, That's Mine! It's Just You Loot Pinata The More The Merrier \\IAMDERELICT Challenges ------------ None Game ------ Seed BackupThrowingInterrupter Manual? 0 Play Time 00:43:37 Cumulative 4.4 hours Start 2023.12.26 @ 11:49:13 End 2023.12.26 @ 12:33:44 Sessions 1 Manual Loads 0 Difficulty Rogue Special Mode None Game No. 2 Rogue 2 Adventurer 0 Explorer 0 Win Type - Total 0 Types 0/0/0/0/0/0/0/0/0 Lore% 18 Gallery% 12 Achievement% 16 Wizard Run 0 Options --------- ASCII 0 Keyboard 1 Movement Arrows Keybinds 0 Fullscreen 1 Font 12/Proggy Map View 83x54 Tactical HUD 1 Map Filters NONE Filters NONE Steam 0 RUN: c4130962-71ec-4b19-9fcb-8624488e7ab9